[Event "RUS-ch Blitz 2021"]
[Site "Sochi"]
[Date "2021.10.11"]
[Round "13.3"]
[White "Sakaev, Konstantin"]
[Black "Kukhmazov, Arsen"]
[Result "1/2-1/2"]
[ECO "E59"]
[WhiteElo "2603"]
[BlackElo "2472"]
[Annotator "ChessBase"]
[PlyCount "27"]
[EventDate "2021.10.11"]
[EventType "blitz"]
[EventCountry "RUS"]
[SourceTitle "playchess.com"]
[Source "ChessBase"]
[SourceQuality "1"]
[TimeControl "180+2"]

1. d4 {[%emt 0:00:05]} Nf6 {[%emt 0:00:00]} 2. c4 {[%emt 0:00:00]} e6 {[%emt 0:
00:00]} 3. Nc3 {[%emt 0:00:00]} Bb4 {[%emt 0:00:00]} 4. e3 {[%emt 0:00:05]} O-O
{[%emt 0:00:04]} 5. Bd3 {[%emt 0:00:00]} d5 {[%emt 0:00:00]} 6. a3 {[%emt 0:00:
00]} Bxc3+ {[%emt 0:00:22]} 7. bxc3 {[%emt 0:00:00]} dxc4 {[%emt 0:00:07]} 8.
Bxc4 {[%emt 0:00:00]} c5 {[%emt 0:00:00]} 9. Nf3 {[%emt 0:00:04]} Qc7 {[%emt 0:
00:06]} 10. Be2 {[%emt 0:00:04]} b6 {[%emt 0:00:00]} 11. Bb2 {[%emt 0:00:00]}
Nc6 {[%emt 0:00:08]} 12. O-O {[%emt 0:00:04]} Na5 {[%emt 0:00:03]} 13. Rc1 {
[%emt 0:00:17]} Bb7 {[%emt 0:00:00]} 14. c4 {[%emt 0:00:00]} 1/2-1/2

[Event "RUS-ch Blitz 2021"]
[Site "Sochi"]
[Date "2021.10.11"]
[Round "13.4"]
[White "Lysyj, Igor"]
[Black "Pridorozhni, Aleksei"]
[Result "1-0"]
[ECO "A53"]
[WhiteElo "2603"]
[BlackElo "2564"]
[Annotator "ChessBase"]
[PlyCount "109"]
[EventDate "2021.10.11"]
[EventType "blitz"]
[EventCountry "RUS"]
[SourceTitle "playchess.com"]
[Source "ChessBase"]
[SourceQuality "1"]
[TimeControl "180+2"]

1. d4 {[%emt 0:00:05]} d6 {[%emt 0:00:00]} 2. Nf3 {[%emt 0:00:00]} Bg4 {
[%emt 0:00:00]} 3. e3 {[%emt 0:00:13]} Nd7 {[%emt 0:00:02]} 4. Be2 {[%emt 0:00:
00]} Ngf6 {[%emt 0:00:00]} 5. c4 {[%emt 0:00:00]} c6 {[%emt 0:00:00]} 6. Nc3 {
[%emt 0:00:00]} e5 {[%emt 0:00:00]} 7. h3 {[%emt 0:00:00]} Bh5 {[%emt 0:00:08]}
8. O-O {[%emt 0:00:15]} Be7 {[%emt 0:00:08]} 9. e4 {[%emt 0:00:00]} O-O {
[%emt 0:00:03]} 10. Be3 {[%emt 0:00:00]} Qc7 {[%emt 0:00:17]} 11. Rc1 {[%emt 0:
00:13]} Rfc8 {[%emt 0:00:05]} 12. d5 {[%emt 0:00:04]} cxd5 {[%emt 0:00:07]} 13.
cxd5 {[%emt 0:00:00]} Qd8 {[%emt 0:00:00]} 14. Nd2 {[%emt 0:00:14]} Bxe2 {
[%emt 0:00:00]} 15. Qxe2 {[%emt 0:00:00]} Ne8 {[%emt 0:00:18]} 16. Nf3 {
[%emt 0:00:18]} a6 {[%emt 0:00:09]} 17. Rc2 {[%emt 0:00:09]} Rc7 {[%emt 0:00:
06]} 18. Rfc1 {[%emt 0:00:01]} Rac8 {[%emt 0:00:00]} 19. a4 {[%emt 0:00:12]} h6
{[%emt 0:00:11]} 20. g3 {[%emt 0:00:12]} Rc4 {[%emt 0:00:07]} 21. Nd2 {[%emt 0:
00:05]} R4c7 {[%emt 0:00:05]} 22. h4 {[%emt 0:00:02]} Nef6 {[%emt 0:00:06]} 23.
Kg2 {[%emt 0:00:06]} h5 {[%emt 0:00:14]} 24. f3 {[%emt 0:00:03]} g6 {[%emt 0:
00:04]} 25. a5 {[%emt 0:00:10]} Bf8 {[%emt 0:00:05]} 26. b3 {[%emt 0:00:08]}
Nc5 {[%emt 0:00:18]} 27. b4 {[%emt 0:00:12]} Ncd7 {[%emt 0:00:00]} 28. Qd3 {
[%emt 0:00:06]} Kh7 {[%emt 0:00:07]} 29. Na4 {[%emt 0:00:04]} Bh6 {[%emt 0:00:
08]} 30. Bxh6 {[%emt 0:00:06]} Kxh6 {[%emt 0:00:00]} 31. Nc4 {[%emt 0:00:04]}
Ne8 {[%emt 0:00:05]} 32. Ncb6 {[%emt 0:00:12]} Nxb6 {[%emt 0:00:15]} 33. Nxb6 {
[%emt 0:00:00]} Rxc2+ {[%emt 0:00:02]} 34. Rxc2 {[%emt 0:00:00]} Rxc2+ {
[%emt 0:00:03]} 35. Qxc2 {[%emt 0:00:00]} Qc7 {[%emt 0:00:16]} 36. Qc4 {
[%emt 0:00:14]} Kg7 {[%emt 0:00:04]} 37. Kf2 {[%emt 0:00:00]} Kf8 {[%emt 0:00:
10]} 38. Ke3 {[%emt 0:00:00]} Ke7 {[%emt 0:00:06]} 39. Kd3 {[%emt 0:00:06]}
Qxc4+ {[%emt 0:00:02]} 40. Nxc4 {[%emt 0:00:06]} Nc7 {[%emt 0:00:01]} 41. f4 {
[%emt 0:00:00]} f6 {[%emt 0:00:06]} 42. Ne3 {[%emt 0:00:00]} Nb5 {[%emt 0:00:
02]} 43. f5 {[%emt 0:00:09]} g5 {[%emt 0:00:00]} 44. g4 {[%emt 0:00:23]} gxh4 {
[%emt 0:00:20]} 45. gxh5 {[%emt 0:00:00]} h3 {[%emt 0:00:00]} 46. Ng4 {[%emt 0:
00:00]} Kf7 {[%emt 0:00:00]} 47. Ke3 {[%emt 0:00:00]} Nc3 {[%emt 0:00:03]} 48.
h6 {[%emt 0:00:03]} Nd1+ {[%emt 0:00:01]} 49. Kf3 {[%emt 0:00:03]} Nc3 {
[%emt 0:00:02]} 50. h7 {[%emt 0:00:04]} Kg7 {[%emt 0:00:00]} 51. Nxf6 {[%emt 0:
00:03]} Ne2 {[%emt 0:00:08]} 52. Ne8+ {[%emt 0:00:03]} Kxh7 {[%emt 0:00:01]}
53. Nxd6 {[%emt 0:00:00]} Nf4 {[%emt 0:00:04]} 54. Kg3 {[%emt 0:00:02]} Kg7 {
[%emt 0:00:03]} 55. Nxb7 {[%emt 0:00:02]} 1-0

[Event "RUS-ch Blitz 2021"]
[Site "Sochi"]
[Date "2021.10.11"]
[Round "13.5"]
[White "Vastrukhin, Oleg"]
[Black "Timofeev, Artyom"]
[Result "1/2-1/2"]
[ECO "A16"]
[WhiteElo "2382"]
[BlackElo "2586"]
[Annotator "ChessBase"]
[PlyCount "130"]
[EventDate "2021.10.11"]
[EventType "blitz"]
[EventCountry "RUS"]
[SourceTitle "playchess.com"]
[Source "ChessBase"]
[SourceQuality "1"]
[TimeControl "180+2"]

1. Nf3 {[%emt 0:00:00]} Nf6 {[%emt 0:00:00]} 2. g3 {[%emt 0:00:00]} g6 {
[%emt 0:00:00]} 3. Bg2 {[%emt 0:00:00]} Bg7 {[%emt 0:00:00]} 4. O-O {[%emt 0:
00:00]} O-O {[%emt 0:00:00]} 5. c4 {[%emt 0:00:00]} Nc6 {[%emt 0:00:22]} 6. Nc3
{[%emt 0:00:07]} e6 {[%emt 0:00:00]} 7. b3 {[%emt 0:00:42]} d5 {[%emt 0:00:00]}
8. Bb2 {[%emt 0:00:00]} d4 {[%emt 0:00:18]} 9. Na4 {[%emt 0:00:00]} e5 {
[%emt 0:00:00]} 10. e3 {[%emt 0:00:03]} dxe3 {[%emt 0:00:22]} 11. dxe3 {
[%emt 0:00:05]} Qe7 {[%emt 0:00:01]} 12. Qc1 {[%emt 0:00:24]} Rd8 {[%emt 0:00:
01]} 13. Ba3 {[%emt 0:00:00]} Qe8 {[%emt 0:00:10]} 14. Rd1 {[%emt 0:00:00]}
Rxd1+ {[%emt 0:00:03]} 15. Qxd1 {[%emt 0:00:00]} e4 {[%emt 0:00:00]} 16. Nd4 {
[%emt 0:00:17]} Nxd4 {[%emt 0:00:06]} 17. exd4 {[%emt 0:00:00]} e3 {[%emt 0:00:
01]} 18. f3 {[%emt 0:00:47]} Bf5 {[%emt 0:00:45]} 19. Qe2 {[%emt 0:00:00]} Rd8
{[%emt 0:00:08]} 20. Bb2 {[%emt 0:00:06]} b5 {[%emt 0:00:13]} 21. Nc5 {[%emt 0:
00:13]} bxc4 {[%emt 0:00:00]} 22. bxc4 {[%emt 0:00:00]} Rb8 {[%emt 0:00:12]}
23. Re1 {[%emt 0:00:00]} Nd7 {[%emt 0:00:01]} 24. Ne4 {[%emt 0:00:10]} Bxe4 {
[%emt 0:00:12]} 25. fxe4 {[%emt 0:00:00]} c5 {[%emt 0:00:00]} 26. e5 {[%emt 0:
00:00]} cxd4 {[%emt 0:00:00]} 27. Bxd4 {[%emt 0:00:09]} Bxe5 {[%emt 0:00:00]}
28. Bxa7 {[%emt 0:00:12]} Rb2 {[%emt 0:00:00]} 29. Qxe3 {[%emt 0:00:10]} Rxa2 {
[%emt 0:00:20]} 30. Bd5 {[%emt 0:00:00]} Rxa7 {[%emt 0:00:08]} 31. Qxa7 {
[%emt 0:00:00]} Bd4+ {[%emt 0:00:01]} 32. Qxd4 {[%emt 0:00:02]} Qxe1+ {[%emt 0:
00:01]} 33. Kg2 {[%emt 0:00:00]} Qe2+ {[%emt 0:00:09]} 34. Qf2 {[%emt 0:00:00]}
Qe7 {[%emt 0:00:01]} 35. Qf3 {[%emt 0:00:11]} Nc5 {[%emt 0:00:00]} 36. Qf2 {
[%emt 0:00:02]} Nd3 {[%emt 0:00:09]} 37. Qd2 {[%emt 0:00:00]} Nc5 {[%emt 0:00:
00]} 38. Kf3 {[%emt 0:00:13]} Nd7 {[%emt 0:00:14]} 39. Qe3 {[%emt 0:00:00]} Kf8
{[%emt 0:00:09]} 40. Qxe7+ {[%emt 0:00:00]} Kxe7 {[%emt 0:00:00]} 41. Ke4 {
[%emt 0:00:00]} f6 {[%emt 0:00:02]} 42. Kd4 {[%emt 0:00:01]} Kd6 {[%emt 0:00:
00]} 43. Be4 {[%emt 0:00:13]} Nc5 {[%emt 0:00:00]} 44. Bc2 {[%emt 0:00:00]}
Ne6+ {[%emt 0:00:01]} 45. Ke4 {[%emt 0:00:15]} Kc5 {[%emt 0:00:00]} 46. Bd3 {
[%emt 0:00:00]} Ng5+ {[%emt 0:00:00]} 47. Kf4 {[%emt 0:00:02]} Nf7 {[%emt 0:00:
00]} 48. g4 {[%emt 0:00:06]} Ne5 {[%emt 0:00:02]} 49. Bb1 {[%emt 0:00:00]} Nxc4
{[%emt 0:00:03]} 50. h4 {[%emt 0:00:04]} Nd6 {[%emt 0:00:04]} 51. g5 {[%emt 0:
00:07]} f5 {[%emt 0:00:05]} 52. Ba2 {[%emt 0:00:00]} Nc4 {[%emt 0:00:05]} 53.
h5 {[%emt 0:00:01]} Kd4 {[%emt 0:00:01]} 54. h6 {[%emt 0:00:01]} Kc5 {[%emt 0:
00:03]} 55. Bb3 {[%emt 0:00:03]} Kd4 {[%emt 0:00:00]} 56. Ba2 {[%emt 0:00:00]}
Kc5 {[%emt 0:00:00]} 57. Bb3 {[%emt 0:00:06]} Kd4 {[%emt 0:00:00]} 58. Ba2 {
[%emt 0:00:00]} Kc5 {[%emt 0:00:02]} 59. Bb1 {[%emt 0:00:01]} Kd5 {[%emt 0:00:
11]} 60. Bxf5 {[%emt 0:00:03]} gxf5 {[%emt 0:00:01]} 61. Kxf5 {[%emt 0:00:02]}
Ne5 {[%emt 0:00:01]} 62. Kf6 {[%emt 0:00:04]} Kd6 {[%emt 0:00:02]} 63. Kg7 {
[%emt 0:00:00]} Ke7 {[%emt 0:00:01]} 64. Kxh7 {[%emt 0:00:03]} Kf7 {[%emt 0:00:
00]} 65. g6+ {[%emt 0:00:04]} Nxg6 {[%emt 0:00:01]} 1/2-1/2

[Event "RUS-ch Blitz 2021"]
[Site "Sochi"]
[Date "2021.10.11"]
[Round "13.6"]
[White "Kobalia, Mikhail"]
[Black "Petrov, Nikita"]
[Result "0-1"]
[ECO "B40"]
[WhiteElo "2600"]
[BlackElo "2539"]
[Annotator "ChessBase"]
[PlyCount "87"]
[EventDate "2021.10.11"]
[EventType "blitz"]
[EventCountry "RUS"]
[SourceTitle "playchess.com"]
[Source "ChessBase"]
[SourceQuality "1"]
[TimeControl "180+2"]

1. e4 {[%emt 0:00:00]} c5 {[%emt 0:00:05]} 2. Nf3 {[%emt 0:00:01]} e6 {[%emt 0:
00:00]} 3. g3 {[%emt 0:00:10]} Nc6 {[%emt 0:00:00]} 4. Bg2 {[%emt 0:00:00]} Nf6
{[%emt 0:00:00]} 5. Qe2 {[%emt 0:00:00]} e5 {[%emt 0:00:00]} 6. O-O {[%emt 0:
00:04]} Be7 {[%emt 0:00:10]} 7. Nc3 {[%emt 0:00:00]} d6 {[%emt 0:00:00]} 8. Nd5
{[%emt 0:00:00]} Be6 {[%emt 0:00:04]} 9. Nxe7 {[%emt 0:00:15]} Qxe7 {[%emt 0:
00:00]} 10. d3 {[%emt 0:00:00]} O-O {[%emt 0:00:03]} 11. c3 {[%emt 0:00:05]} h6
{[%emt 0:00:19]} 12. Re1 {[%emt 0:00:04]} Rad8 {[%emt 0:00:06]} 13. h3 {
[%emt 0:00:08]} Rfe8 {[%emt 0:00:00]} 14. Nh4 {[%emt 0:00:12]} Qd7 {[%emt 0:00:
29]} 15. g4 {[%emt 0:00:15]} Nh7 {[%emt 0:00:11]} 16. Nf5 {[%emt 0:00:01]} d5 {
[%emt 0:00:05]} 17. Qf3 {[%emt 0:00:14]} b5 {[%emt 0:00:33]} 18. Be3 {[%emt 0:
00:17]} d4 {[%emt 0:00:13]} 19. cxd4 {[%emt 0:00:04]} Nxd4 {[%emt 0:00:00]} 20.
Nxd4 {[%emt 0:00:10]} cxd4 {[%emt 0:00:05]} 21. Bd2 {[%emt 0:00:00]} Rc8 {
[%emt 0:00:00]} 22. Rec1 {[%emt 0:00:32]} Nf8 {[%emt 0:00:00]} 23. a3 {[%emt 0:
00:09]} Ng6 {[%emt 0:00:02]} 24. Qg3 {[%emt 0:00:01]} Qd6 {[%emt 0:00:13]} 25.
h4 {[%emt 0:00:03]} Nf4 {[%emt 0:00:00]} 26. Bxf4 {[%emt 0:00:04]} exf4 {
[%emt 0:00:06]} 27. Qf3 {[%emt 0:00:00]} Qe5 {[%emt 0:00:00]} 28. Bf1 {[%emt 0:
00:10]} g5 {[%emt 0:00:01]} 29. hxg5 {[%emt 0:00:07]} hxg5 {[%emt 0:00:00]} 30.
Be2 {[%emt 0:00:01]} Kg7 {[%emt 0:00:03]} 31. Kg2 {[%emt 0:00:06]} Rh8 {
[%emt 0:00:29]} 32. Rxc8 {[%emt 0:00:06]} Bxc8 {[%emt 0:00:19]} 33. Rc1 {
[%emt 0:00:04]} Be6 {[%emt 0:00:00]} 34. b4 {[%emt 0:00:09]} Rh4 {[%emt 0:00:
15]} 35. Rc5 {[%emt 0:00:03]} Qf6 {[%emt 0:00:00]} 36. Rxb5 {[%emt 0:00:24]}
Qh6 {[%emt 0:00:05]} 37. Kg1 {[%emt 0:00:00]} Bxg4 {[%emt 0:00:10]} 38. Qxg4 {
[%emt 0:00:00]} Rxg4+ {[%emt 0:00:05]} 39. Bxg4 {[%emt 0:00:02]} Qh4 {[%emt 0:
00:04]} 40. f3 {[%emt 0:00:17]} Qe1+ {[%emt 0:00:00]} 41. Kg2 {[%emt 0:00:00]}
Qe2+ {[%emt 0:00:00]} 42. Kg1 {[%emt 0:00:05]} Qxd3 {[%emt 0:00:00]} 43. Rd5 {
[%emt 0:00:01]} Qe3+ {[%emt 0:00:05]} 44. Kg2 {[%emt 0:00:04]} 0-1

[Event "RUS-ch Blitz 2021"]
[Site "Sochi"]
[Date "2021.10.11"]
[Round "13.7"]
[White "Riazantsev, Alexander"]
[Black "Antipov, Mikhail Al."]
[Result "1/2-1/2"]
[ECO "D91"]
[WhiteElo "2634"]
[BlackElo "2619"]
[Annotator "ChessBase"]
[PlyCount "100"]
[EventDate "2021.10.11"]
[EventType "blitz"]
[EventCountry "RUS"]
[SourceTitle "playchess.com"]
[Source "ChessBase"]
[SourceQuality "1"]
[TimeControl "180+2"]

1. d4 {[%emt 0:00:00]} Nf6 {[%emt 0:00:05]} 2. Nf3 {[%emt 0:00:01]} g6 {
[%emt 0:00:00]} 3. c4 {[%emt 0:00:00]} Bg7 {[%emt 0:00:00]} 4. Nc3 {[%emt 0:00:
00]} d5 {[%emt 0:00:00]} 5. Bg5 {[%emt 0:00:11]} Ne4 {[%emt 0:00:00]} 6. cxd5 {
[%emt 0:00:00]} Nxg5 {[%emt 0:00:00]} 7. Nxg5 {[%emt 0:00:00]} e6 {[%emt 0:00:
00]} 8. Qd2 {[%emt 0:00:02]} exd5 {[%emt 0:00:01]} 9. Qe3+ {[%emt 0:00:00]} Kf8
{[%emt 0:00:10]} 10. Qf4 {[%emt 0:00:00]} Bf6 {[%emt 0:00:05]} 11. h4 {[%emt 0:
00:00]} h6 {[%emt 0:00:00]} 12. Nf3 {[%emt 0:00:03]} Kg7 {[%emt 0:00:14]} 13.
O-O-O {[%emt 0:00:00]} Be6 {[%emt 0:00:25]} 14. e4 {[%emt 0:00:01]} dxe4 {
[%emt 0:00:44]} 15. d5 {[%emt 0:00:03]} Bf5 {[%emt 0:00:21]} 16. Nd4 {[%emt 0:
00:01]} Bxd4 {[%emt 0:00:10]} 17. Rxd4 {[%emt 0:00:01]} Qf6 {[%emt 0:00:00]}
18. Rc4 {[%emt 0:00:39]} g5 {[%emt 0:00:15]} 19. Qe3 {[%emt 0:01:10]} Nd7 {
[%emt 0:00:02]} 20. Nxe4 {[%emt 0:00:10]} Bxe4 {[%emt 0:00:00]} 21. Rxe4 {
[%emt 0:00:00]} Nb6 {[%emt 0:00:30]} 22. Re5 {[%emt 0:00:10]} Qf4 {[%emt 0:00:
23]} 23. Qxf4 {[%emt 0:00:29]} gxf4 {[%emt 0:00:00]} 24. Bb5 {[%emt 0:00:29]}
a6 {[%emt 0:00:12]} 25. Bd3 {[%emt 0:00:07]} Rad8 {[%emt 0:00:00]} 26. Be4 {
[%emt 0:00:00]} Rhe8 {[%emt 0:00:11]} 27. Rxe8 {[%emt 0:00:00]} Rxe8 {[%emt 0:
00:00]} 28. Bf3 {[%emt 0:00:00]} Nc4 {[%emt 0:00:07]} 29. Rd1 {[%emt 0:00:01]}
Ne5 {[%emt 0:00:02]} 30. Rd4 {[%emt 0:00:16]} Nxf3 {[%emt 0:00:00]} 31. gxf3 {
[%emt 0:00:00]} Re5 {[%emt 0:00:03]} 32. Rc4 {[%emt 0:00:07]} Rxd5 {[%emt 0:00:
00]} 33. Rxc7 {[%emt 0:00:00]} b5 {[%emt 0:00:06]} 34. Rc6 {[%emt 0:00:00]} a5
{[%emt 0:00:02]} 35. Kc2 {[%emt 0:00:00]} Rh5 {[%emt 0:00:00]} 36. Kd3 {
[%emt 0:00:04]} Rxh4 {[%emt 0:00:00]} 37. Rc5 {[%emt 0:00:02]} Rh2 {[%emt 0:00:
01]} 38. Rxb5 {[%emt 0:00:03]} Rxf2 {[%emt 0:00:02]} 39. Ke4 {[%emt 0:00:00]}
a4 {[%emt 0:00:05]} 40. a3 {[%emt 0:00:01]} Rc2 {[%emt 0:00:04]} 41. Kxf4 {
[%emt 0:00:00]} Rc4+ {[%emt 0:00:00]} 42. Kg3 {[%emt 0:00:07]} Kg6 {[%emt 0:00:
00]} 43. Rb6+ {[%emt 0:00:05]} f6 {[%emt 0:00:01]} 44. Rb5 {[%emt 0:00:01]} f5
{[%emt 0:00:04]} 45. b3 {[%emt 0:00:04]} axb3 {[%emt 0:00:03]} 46. Rxb3 {
[%emt 0:00:01]} Ra4 {[%emt 0:00:02]} 47. Rb6+ {[%emt 0:00:01]} Kg5 {[%emt 0:00:
02]} 48. f4+ {[%emt 0:00:04]} Kh5 {[%emt 0:00:02]} 49. Rb3 {[%emt 0:00:00]} Ra5
{[%emt 0:00:02]} 50. Re3 {[%emt 0:00:03]} Ra4 {[%emt 0:00:01]} 1/2-1/2

[Event "RUS-ch Blitz 2021"]
[Site "Sochi"]
[Date "2021.10.11"]
[Round "13.8"]
[White "Shubin, Kirill"]
[Black "Rozum, Ivan"]
[Result "1/2-1/2"]
[ECO "B13"]
[WhiteElo "2463"]
[BlackElo "2529"]
[Annotator "ChessBase"]
[PlyCount "30"]
[EventDate "2021.10.11"]
[EventType "blitz"]
[EventCountry "RUS"]
[SourceTitle "playchess.com"]
[Source "ChessBase"]
[SourceQuality "1"]
[TimeControl "180+2"]

1. e4 {[%emt 0:00:00]} c6 {[%emt 0:00:06]} 2. d4 {[%emt 0:00:01]} d5 {[%emt 0:
00:00]} 3. exd5 {[%emt 0:00:00]} cxd5 {[%emt 0:00:00]} 4. Bd3 {[%emt 0:00:00]}
Nc6 {[%emt 0:00:03]} 5. c3 {[%emt 0:00:03]} Nf6 {[%emt 0:00:00]} 6. Bf4 {
[%emt 0:00:00]} Bg4 {[%emt 0:00:00]} 7. Qb3 {[%emt 0:00:00]} Qd7 {[%emt 0:00:
00]} 8. Nd2 {[%emt 0:00:09]} e6 {[%emt 0:00:01]} 9. Ngf3 {[%emt 0:00:00]} Bd6 {
[%emt 0:00:00]} 10. Bxd6 {[%emt 0:00:00]} Qxd6 {[%emt 0:00:06]} 11. O-O {
[%emt 0:00:00]} O-O {[%emt 0:00:01]} 12. Rfe1 {[%emt 0:00:02]} Ne7 {[%emt 0:00:
00]} 13. Ne5 {[%emt 0:00:15]} Bf5 {[%emt 0:00:00]} 14. Bxf5 {[%emt 0:00:18]}
Nxf5 {[%emt 0:00:00]} 15. Re2 {[%emt 0:00:11]} Qc7 {[%emt 0:00:08]} 1/2-1/2

[Event "RUS-ch Blitz 2021"]
[Site "Sochi"]
[Date "2021.10.11"]
[Round "13.9"]
[White "Savchenko, Boris"]
[Black "Makarian, Rudik"]
[Result "1-0"]
[ECO "B80"]
[WhiteElo "2535"]
[BlackElo "2470"]
[Annotator "ChessBase"]
[PlyCount "87"]
[EventDate "2021.10.11"]
[EventType "blitz"]
[EventCountry "RUS"]
[SourceTitle "playchess.com"]
[Source "ChessBase"]
[SourceQuality "1"]
[TimeControl "180+2"]

1. e4 {[%emt 0:00:00]} c5 {[%emt 0:00:06]} 2. Nf3 {[%emt 0:00:03]} e6 {[%emt 0:
00:00]} 3. d4 {[%emt 0:00:09]} cxd4 {[%emt 0:00:00]} 4. Nxd4 {[%emt 0:00:00]}
Nf6 {[%emt 0:00:00]} 5. Nc3 {[%emt 0:00:05]} Nc6 {[%emt 0:00:00]} 6. g3 {
[%emt 0:00:00]} d6 {[%emt 0:00:15]} 7. Nb3 {[%emt 0:00:08]} Be7 {[%emt 0:00:04]
} 8. Bg2 {[%emt 0:00:05]} O-O {[%emt 0:00:10]} 9. O-O {[%emt 0:00:06]} a6 {
[%emt 0:00:02]} 10. a4 {[%emt 0:00:00]} Na5 {[%emt 0:00:00]} 11. Nd4 {[%emt 0:
00:10]} Bd7 {[%emt 0:00:11]} 12. b3 {[%emt 0:00:03]} Qc8 {[%emt 0:00:22]} 13.
Bb2 {[%emt 0:00:00]} e5 {[%emt 0:00:00]} 14. Nf3 {[%emt 0:00:21]} b5 {[%emt 0:
00:02]} 15. axb5 {[%emt 0:00:18]} axb5 {[%emt 0:00:00]} 16. Nh4 {[%emt 0:00:02]
} g6 {[%emt 0:00:35]} 17. Qd2 {[%emt 0:00:22]} b4 {[%emt 0:00:17]} 18. Nd1 {
[%emt 0:00:04]} Qb7 {[%emt 0:00:05]} 19. Qg5 {[%emt 0:00:50]} Bb5 {[%emt 0:00:
32]} 20. Re1 {[%emt 0:00:10]} Nh5 {[%emt 0:00:08]} 21. Qg4 {[%emt 0:00:06]} Bd7
{[%emt 0:00:00]} 22. Nf5 {[%emt 0:00:01]} Be6 {[%emt 0:00:32]} 23. Nde3 {
[%emt 0:00:14]} Ng7 {[%emt 0:00:09]} 24. Nxe7+ {[%emt 0:00:05]} Qxe7 {[%emt 0:
00:01]} 25. Qe2 {[%emt 0:00:00]} Nc6 {[%emt 0:00:09]} 26. Nd5 {[%emt 0:00:00]}
Bxd5 {[%emt 0:00:08]} 27. exd5 {[%emt 0:00:08]} Rxa1 {[%emt 0:00:04]} 28. Rxa1
{[%emt 0:00:00]} Nd8 {[%emt 0:00:00]} 29. Qc4 {[%emt 0:00:08]} f5 {[%emt 0:00:
03]} 30. Qxb4 {[%emt 0:00:05]} Nf7 {[%emt 0:00:00]} 31. c4 {[%emt 0:00:02]} e4
{[%emt 0:00:00]} 32. Ra6 {[%emt 0:00:04]} e3 {[%emt 0:00:06]} 33. Qc3 {[%emt 0:
00:00]} exf2+ {[%emt 0:00:02]} 34. Kxf2 {[%emt 0:00:10]} Ne5 {[%emt 0:00:00]}
35. Rxd6 {[%emt 0:00:07]} Qxd6 {[%emt 0:00:05]} 36. Qxe5 {[%emt 0:00:00]} Qxe5
{[%emt 0:00:03]} 37. Bxe5 {[%emt 0:00:00]} Re8 {[%emt 0:00:03]} 38. Bd4 {
[%emt 0:00:02]} Rb8 {[%emt 0:00:00]} 39. d6 {[%emt 0:00:03]} Ne6 {[%emt 0:00:
03]} 40. Bd5 {[%emt 0:00:00]} Kf7 {[%emt 0:00:02]} 41. c5 {[%emt 0:00:02]} Rb4
{[%emt 0:00:03]} 42. Bc3 {[%emt 0:00:00]} Rb5 {[%emt 0:00:00]} 43. b4 {[%emt 0:
00:00]} Rb8 {[%emt 0:00:01]} 44. c6 {[%emt 0:00:01]} 1-0

[Event "RUS-ch Blitz 2021"]
[Site "Sochi"]
[Date "2021.10.11"]
[Round "13.10"]
[White "Sjugirov, Sanan"]
[Black "Matinian, Nikita"]
[Result "1-0"]
[ECO "A41"]
[WhiteElo "2663"]
[BlackElo "2454"]
[Annotator "ChessBase"]
[PlyCount "75"]
[EventDate "2021.10.11"]
[EventType "blitz"]
[EventCountry "RUS"]
[SourceTitle "playchess.com"]
[Source "ChessBase"]
[SourceQuality "1"]
[TimeControl "180+2"]

1. d4 {[%emt 0:00:07]} d6 {[%emt 0:00:00]} 2. Nf3 {[%emt 0:00:00]} g6 {[%emt 0:
00:00]} 3. c4 {[%emt 0:00:07]} Bg7 {[%emt 0:00:01]} 4. Nc3 {[%emt 0:00:00]} Nc6
{[%emt 0:00:00]} 5. d5 {[%emt 0:00:04]} Ne5 {[%emt 0:00:03]} 6. Nxe5 {[%emt 0:
00:00]} Bxe5 {[%emt 0:00:07]} 7. e4 {[%emt 0:00:07]} Nf6 {[%emt 0:00:00]} 8.
Bd3 {[%emt 0:00:02]} c6 {[%emt 0:00:03]} 9. O-O {[%emt 0:00:08]} Bd7 {[%emt 0:
00:14]} 10. h3 {[%emt 0:00:00]} cxd5 {[%emt 0:00:02]} 11. exd5 {[%emt 0:00:03]}
Rc8 {[%emt 0:00:02]} 12. Bh6 {[%emt 0:00:21]} Bf5 {[%emt 0:00:25]} 13. Re1 {
[%emt 0:00:12]} Qc7 {[%emt 0:00:09]} 14. Bf1 {[%emt 0:00:20]} Rg8 {[%emt 0:00:
18]} 15. Bg5 {[%emt 0:00:06]} h6 {[%emt 0:00:07]} 16. Be3 {[%emt 0:00:21]} a6 {
[%emt 0:00:09]} 17. Rc1 {[%emt 0:00:31]} g5 {[%emt 0:00:04]} 18. Bd4 {[%emt 0:
00:06]} Bxd4 {[%emt 0:00:04]} 19. Qxd4 {[%emt 0:00:02]} Kf8 {[%emt 0:00:06]}
20. b4 {[%emt 0:00:03]} g4 {[%emt 0:00:04]} 21. h4 {[%emt 0:00:04]} g3 {
[%emt 0:00:00]} 22. f3 {[%emt 0:00:03]} Rg6 {[%emt 0:00:11]} 23. Re3 {[%emt 0:
00:04]} Qd8 {[%emt 0:00:28]} 24. Rce1 {[%emt 0:00:03]} Rc7 {[%emt 0:00:02]} 25.
Qf4 {[%emt 0:00:10]} Bc8 {[%emt 0:00:08]} 26. Bd3 {[%emt 0:00:05]} Rg7 {
[%emt 0:00:19]} 27. Qxh6 {[%emt 0:00:03]} b5 {[%emt 0:00:01]} 28. c5 {[%emt 0:
00:11]} dxc5 {[%emt 0:00:05]} 29. bxc5 {[%emt 0:00:04]} Rxc5 {[%emt 0:00:00]}
30. Rxe7 {[%emt 0:00:06]} Rxc3 {[%emt 0:00:46]} 31. Qxf6 {[%emt 0:00:00]} Rxd3
{[%emt 0:00:03]} 32. Re8+ {[%emt 0:00:03]} Qxe8 {[%emt 0:00:02]} 33. Qd6+ {
[%emt 0:00:00]} Kg8 {[%emt 0:00:03]} 34. Rxe8+ {[%emt 0:00:01]} Kh7 {[%emt 0:
00:00]} 35. Kf1 {[%emt 0:00:16]} Bh3 {[%emt 0:00:00]} 36. Ke2 {[%emt 0:00:04]}
Rc3 {[%emt 0:00:05]} 37. Qe5 {[%emt 0:00:06]} Rc2+ {[%emt 0:00:00]} 38. Kd3 {
[%emt 0:00:00]} 1-0